fUSD/lending_fUSD_20240114
["ID","MTS","AMOUNT","RATE_DAILY","PERIOD"]
[311567604,1705251680995,250.0,0.00021452,2]
[311567605,1705251684160,400.0,0.00021452,2]
[311567606,1705251722335,14120.57,0.00021438,2]
[311567607,1705251735407,818.01,0.00021411,2]
[311567608,1705251735906,23900.0,0.0002143,2]
[311567609,1705251765749,164.62,0.00021398,2]
[311567610,1705251798651,150.0,0.00021409,2]
[311567611,1705251824667,336.61772468,0.00022,2]
[311567612,1705251830041,256.63,0.00022,2]
[311567613,1705251836468,991.02435468,0.00022,2]
[311567614,1705251838292,150.0,0.00022,2]
[311567615,1705251862161,360.61696674,0.00022101,2]
[311567616,1705251880150,236.80395188,0.00017786,2]
[311567617,1705251882408,150.0,0.00022,2]
[311567618,1705251942477,500.0,0.00021406,2]
[311567619,1705251959977,1852.42,0.00021406,2]
[311567621,1705251975264,261.15,0.00021386,2]
[311567622,1705251982155,499.78,0.00019507,2]
[311567623,1705251982351,499.78,0.00021771,2]
[311567624,1705252004650,155.9,0.00021654,2]
[311567625,1705252010512,2000.0,0.00021439,2]
[311567627,1705252055779,378.4,0.00021385,2]
[311567629,1705252167471,250.0,0.00021411,2]
[311567630,1705252193272,23900.0,0.00021411,2]
[311567631,1705252195864,680.0,0.00021411,2]
[311567643,1705252207164,795.04,0.00021426,2]
[311567644,1705252218965,1263.95,0.00022021,2]
[311567648,1705252231850,-404.01534873,0.00022111,2]
[311567649,1705252231859,-248.55625965,0.00022112,2]
[311567650,1705252231869,-1043.21340546,0.00022113,2]
[311567651,1705252231878,-2675.96298617,0.00022114,2]
[311567652,1705252231889,-512.40595057,0.00022114,2]
[311567653,1705252231898,-220.39427133,0.00022125,2]
[311567654,1705252231909,-5486.16669538,0.00022134,2]
[311567655,1705252231918,-150.0,0.00022135,2]
[311567656,1705252231928,-300.0,0.00022135,2]
[311567657,1705252231937,-474.07011327,0.00022136,2]
[311567658,1705252231947,-560.25023134,0.00022136,2]
[311567659,1705252231956,-256.63,0.00022137,2]
[311567660,1705252231969,-220.39427133,0.00022171,2]
[311567661,1705252231978,-156.38,0.00022204,2]
[311567662,1705252231987,-220.39427133,0.00022216,2]
[311567663,1705252231996,-7465.28,0.00022216,2]
[311567664,1705252232005,-525.35,0.00022216,2]
[311567665,1705252232014,-9912.57820348,0.00022222,2]
[311567666,1705252232023,-12289.26387543,0.00022232,2]
[311567667,1705252232033,-185.67147386,0.00022232,2]
[311567668,1705252232042,-507.17379745,0.00022232,2]
[311567669,1705252232052,-2054.22387362,0.00022232,2]
[311567670,1705252232061,-155.68058134,0.00022232,2]
[311567671,1705252232070,-2591.75682868,0.00022232,2]
[311567672,1705252232080,-4365.92836294,0.00022232,2]
[311567673,1705252232089,-1042.12567212,0.00022232,2]
[311567674,1705252232099,-1000.0,0.00022234,2]
[311567675,1705252232108,-31251.89317933,0.00022234,2]
[311567676,1705252232125,-10929.99999999,0.00022234,2]
[311567677,1705252232157,-2177.5,0.00022234,2]
[311567678,1705252232168,-4910.35077126,0.00022234,2]
[311567681,1705252232179,-11737.84626998,0.00022234,2]
[311567682,1705252232196,-662.945,0.00022234,2]
[311567683,1705252232208,-505.618,0.00022234,2]
[311567684,1705252232221,-815.6374002,0.00022234,2]
[311567685,1705252232232,-338.9958,0.00022234,2]
[311567688,1705252238637,-2453.4191049,0.00022234,2]
[311567689,1705252238649,-3709.59025706,0.00022234,2]
[311567690,1705252238697,-20266.09196093,0.00022234,2]
[311567691,1705252238709,-2551.59010593,0.00022234,2]
[311567692,1705252238724,-1020.68090135,0.00022234,2]
[311567693,1705252238736,-3745.10951758,0.00022234,2]
[311567694,1705252238747,-488.71177164,0.00022234,2]
[311567695,1705252238759,-2486.36521895,0.00022234,2]
[311567696,1705252238770,-415.9288403,0.00022234,2]
[311567866,1705252240450,-338.65844328,0.00022234,2]
[311567881,1705252240594,-2039.02010749,0.00022234,2]
[311567921,1705252241022,-11883.63784983,0.00022234,2]
[311567923,1705252241032,-6079.2175,0.00022234,2]
[311567925,1705252241041,-220.39427133,0.00022262,2]
[311567927,1705252241051,-262.84964119,0.00022274,2]
[311567929,1705252241061,-100000.0,0.000223,2]
[311567931,1705252241071,-2500.0,0.000223,2]
[311567933,1705252241080,-342.31445013,0.000223,2]
[311567935,1705252241089,-220.39427133,0.00022307,2]
[311567937,1705252241099,-220.39427133,0.00022353,2]
[311567939,1705252241108,-156.38,0.00022383,2]
[311567941,1705252241117,-220.39427133,0.00022399,2]
[311567943,1705252241127,-43213.8049,0.000224,2]
[311567946,1705252241136,-208.67436723,0.000224,2]
[311567948,1705252241145,-208.67436723,0.000224,2]
[311567949,1705252241154,-795.04,0.00022404,2]
[311567951,1705252241164,-220.39427133,0.00022444,2]
[311567953,1705252241174,-220.39427133,0.0002249,2]
[311567956,1705252241183,-250.0,0.00022499,2]
[311567958,1705252241192,-362.02970747,0.000225,2]
[311567959,1705252241202,-129265.41586388,0.000225,2]
[311567962,1705252241211,-220.39427133,0.00022535,2]
[311567964,1705252241222,-264183.0,0.00022542,2]
[311567966,1705252241231,-156.38,0.00022562,2]
[311567968,1705252241240,-220.39427133,0.00022581,2]
[311567970,1705252241250,-220.39427133,0.00022627,2]
[311567972,1705252241260,-220.39427133,0.00022672,2]
[311567974,1705252241270,-220.39427133,0.00022718,2]
[311567976,1705252241279,-156.38,0.00022741,2]
[311567978,1705252241289,-220.39427133,0.00022763,2]
[311567980,1705252241299,-220.39427133,0.00022809,2]
[311567982,1705252241308,-220.39427133,0.00022854,2]
[311567984,1705252241319,-5000.0,0.000229,2]
[311567986,1705252241329,-220.39427133,0.000229,2]
[311567988,1705252241338,-250.16449949,0.000229,2]
[311567990,1705252241348,-1904.69435412,0.000229,2]
[311567992,1705252241357,-546.42712196,0.000229,2]
[311567994,1705252241367,-1030.29696618,0.000229,2]
[311567997,1705252241377,-372.06258749,0.000229,2]
[311567999,1705252241387,-156.38,0.0002292,2]
[311568001,1705252241396,-296.35627918,0.00022997,2]
[311568003,1705252241405,-155.24585568,0.00022997,2]
[311568005,1705252241415,-373.92735783,0.00022997,2]
[311568007,1705252241424,-155.16612944,0.00022997,2]
[311568009,1705252241434,-240.85320911,0.00022997,2]
[311568011,1705252241443,-345.77870134,0.00022999,10]
[311568013,1705252241452,-300.0,0.00022999,2]
[311568015,1705252241462,-300.0,0.00022999,2]
[311568017,1705252241472,-469587.71952964,0.00023,2]
[311568019,1705252241482,-733.05,0.00023,2]
[311568021,1705252241491,-4418222.46472689,0.00023,2]
[311568023,1705252241501,-150.0,0.00023,2]
[311568025,1705252241512,-155.9,0.00023011,2]
[311568027,1705252241522,-156.38,0.00023099,2]
[311568029,1705252241531,-156.38,0.00023278,2]
[311568031,1705252241542,-795.04,0.00023383,2]
[311568033,1705252241551,-156.38,0.00023458,2]
[311568035,1705252241561,-156.38,0.00023637,2]
[311568037,1705252241570,-1904.69435412,0.00023648,2]
[311568039,1705252241580,-210.0,0.000239,2]
[311568041,1705252241589,-294.0,0.000239,2]
[311568044,1705252241599,-200.98944307,0.00024,2]
[311568046,1705252241609,-163.54,0.00024033,2]
[311568048,1705252241618,-499.78,0.00024035,2]
[311568050,1705252241627,-680.0,0.00024087,2]
[311568052,1705252241637,-400.0,0.00024134,2]
[311568054,1705252241646,-795.04,0.00024361,2]
[311568056,1705252241655,-155.9,0.00024369,2]
[311568058,1705252241665,-1904.69435412,0.00024397,2]
[311568060,1705252241673,-250.0,0.00024658,2]
[311568062,1705252241683,-1247.79685735,0.00025,2]
[311568064,1705252241692,-1070.01161759,0.00025,2]
[311568066,1705252241701,-303.21915795,0.00025,2]
[311568068,1705252241711,-1583.00550367,0.00025,2]
[311568070,1705252241720,-167.23848345,0.00025,2]
[311568072,1705252241730,-201.87194842,0.00025,2]
[311568074,1705252241740,-2002.75826668,0.00025,2]
[311568076,1705252241749,-1904.69435412,0.00025145,2]
[311568078,1705252241758,-210.0,0.0002524,2]
[311568080,1705252241767,-294.0,0.0002524,2]
[311568082,1705252241776,-795.04,0.0002534,2]
[311568084,1705252241786,-155.9,0.00025727,2]
[311568086,1705252241795,-1904.69435412,0.00025893,2]
[311568088,1705252241805,-150.0,0.00026079,2]
[311568090,1705252241814,-167.06,0.00026141,2]
[311568092,1705252241823,-499.78,0.00026299,2]
[311568094,1705252241833,-1299.542017,0.000263,2]
[311568096,1705252241842,-795.04,0.00026318,2]
[311568098,1705252241851,-210.0,0.0002657,2]
[311568100,1705252241861,-294.0,0.0002657,2]
[311568102,1705252241870,-10330.64,0.00026575,2]
[311568104,1705252241880,-2844.75,0.00026575,2]
[311568106,1705252241889,-1295.71667291,0.00026605,2]
[311568108,1705252241898,-1030.29696616,0.00026605,2]
[311568111,1705252241908,-1904.69435412,0.00026642,2]
[311568113,1705252241917,-680.0,0.00026764,2]
[311568115,1705252241927,-400.0,0.00026815,2]
[311568117,1705252241936,-178.94251473,0.00027,2]
[311568119,1705252241945,-178.94251473,0.00027,2]
[311568121,1705252241954,-178.94251473,0.00027,2]
[311568123,1705252241963,-178.94251473,0.00027,2]
[311568125,1705252241974,-178.94251473,0.00027,2]
[311568126,1705252241983,-178.94251473,0.00027,2]
[311568129,1705252241993,-178.94251473,0.00027,2]
[311568131,1705252242002,-178.94251473,0.00027,2]
[311568133,1705252242011,-178.94251473,0.00027,2]
[311568135,1705252242020,-178.94251473,0.00027,2]
[311568137,1705252242030,-178.94251473,0.00027,2]
[311568139,1705252242039,-178.94251473,0.00027,2]
[311568141,1705252242048,-178.94251473,0.00027,2]
[311568143,1705252242058,-178.94251473,0.00027,2]
[311568145,1705252242067,-178.94251473,0.00027,2]
[311568147,1705252242076,-178.94251473,0.00027,2]
[311568149,1705252242085,-178.94251473,0.00027,2]
[311568151,1705252242095,-178.94251473,0.00027,2]
[311568153,1705252242104,-178.94251473,0.00027,2]
[311568155,1705252242114,-178.94251473,0.00027,2]
[311568157,1705252242123,-178.94251473,0.00027,2]
[311568159,1705252242132,-178.94251473,0.00027,2]
[311568161,1705252242142,-178.94251473,0.00027,2]
[311568163,1705252242151,-178.94251473,0.00027,2]
[311568165,1705252242161,-178.94251473,0.00027,2]
[311568167,1705252242170,-178.94251473,0.00027,2]
[311568169,1705252242179,-178.94251473,0.00027,2]
[311568209,1705252242610,-178.94251473,0.00027,2]
[311568212,1705252242628,-178.94251473,0.00027,2]
[311568214,1705252242638,-178.94251473,0.00027,2]
[311568216,1705252242647,-178.94251473,0.00027,2]
[311568218,1705252242657,-178.94251473,0.00027,2]
[311568220,1705252242666,-795.04,0.00027297,2]
[311568222,1705252242675,-1000.0,0.000273,2]
[311568224,1705252242685,-1015.218545,0.000273,2]
[311568226,1705252242694,-1585.93809427,0.000273,2]
[311568229,1705252242703,-1585.93809427,0.000273,2]
[311568233,1705252242714,-1585.93809427,0.000273,2]
[311568238,1705252242724,-1585.93809427,0.000273,2]
[311568242,1705252242735,-1585.93809427,0.000273,2]
[311568245,1705252242744,-1585.93809427,0.000273,2]
[311568248,1705252242755,-1585.93809427,0.000273,2]
[311568250,1705252242764,-1585.93809427,0.000273,2]
[311568254,1705252242773,-1585.93809427,0.000273,2]
[311568256,1705252242782,-1585.93809427,0.000273,2]
[311568258,1705252242791,-1585.93809427,0.000273,2]
[311568261,1705252242801,-1585.93809427,0.000273,2]
[311568264,1705252242811,-1585.93809427,0.000273,2]
[311568267,1705252242820,-1585.93809427,0.000273,2]
[311568270,1705252242829,-1585.93809427,0.000273,2]
[311568273,1705252242839,-1585.93809427,0.000273,2]
[311568276,1705252242848,-1585.93809427,0.000273,2]
[311568279,1705252242857,-1585.93809427,0.000273,2]
[311568282,1705252242866,-1585.93809427,0.000273,2]
[311568285,1705252242876,-1904.69435412,0.0002739,2]
[311568288,1705252242885,-155.0,0.00027397,2]
[311568291,1705252242894,-5335.2103901,0.00027397,2]
[311568294,1705252242903,-250.0,0.00027397,2]
[311568297,1705252242912,-30609.0,0.00027397,2]
[311568300,1705252242921,-5632.93,0.00027397,2]
[311568303,1705252242931,-416.32,0.00027397,2]
[311568306,1705252242941,-536.74,0.00027397,2]
[311568309,1705252242950,-2367.07,0.00027397,2]
[311568312,1705252242959,-30609.0,0.00027556,2]
[311568315,1705252242969,-30609.0,0.00027714,2]
[311568318,1705252242979,-3432.99,0.00027808,3]
[311568321,1705252242988,-30609.0,0.00027872,2]
[311568323,1705252242998,-210.0,0.0002791,2]
[311568326,1705252243007,-294.0,0.0002791,2]
[311568328,1705252243016,-314.92,0.00027992,2]
[311568331,1705252243026,-202.89143555,0.00028,2]
[311568333,1705252243035,-1679.28638672,0.00028,2]
[311568335,1705252243044,-1679.28638672,0.00028,2]
[311568337,1705252243053,-1679.28638672,0.00028,2]
[311568339,1705252243063,-1679.28638672,0.00028,2]
[311568341,1705252243072,-1679.28638672,0.00028,2]
[311568343,1705252243081,-1679.28638672,0.00028,2]
[311568345,1705252243090,-1679.28638672,0.00028,2]
[311568347,1705252243099,-1679.28638672,0.00028,2]
[311568349,1705252243108,-1679.28638672,0.00028,2]
[311568351,1705252243118,-1679.28638672,0.00028,2]
[311568353,1705252243127,-1679.28638672,0.00028,2]
[311568355,1705252243136,-1679.28638672,0.00028,2]
[311568357,1705252243145,-1679.28638672,0.00028,2]
[311568359,1705252243155,-1679.28638672,0.00028,2]
[311568361,1705252243165,-1679.28638672,0.00028,2]
[311568363,1705252243174,-1679.28638672,0.00028,2]
[311568366,1705252243183,-1679.28638672,0.00028,2]
[311568368,1705252243193,-1679.28638672,0.00028,2]
[311568370,1705252243202,-1679.28638672,0.00028,2]
[311568372,1705252243211,-1679.28638672,0.00028,2]
[311568373,1705252243221,-1679.28638672,0.00028,2]
[311568375,1705252243230,-1679.28638672,0.00028,2]
[311568377,1705252243240,-1679.28638672,0.00028,2]
[311568380,1705252243249,-1679.28638672,0.00028,2]
[311568382,1705252243260,-1679.28638672,0.00028,2]
[311568384,1705252243269,-1679.28638672,0.00028,2]
[311568386,1705252243279,-1679.28638672,0.00028,2]
[311568388,1705252243288,-1679.28638672,0.00028,2]
[311568390,1705252243298,-1679.28638672,0.00028,2]
[311568392,1705252243307,-1679.28638672,0.00028,2]
[311568394,1705252243316,-1679.28638672,0.00028,2]
[311568396,1705252243325,-1679.28638672,0.00028,2]
[311568398,1705252243337,-1679.28638672,0.00028,2]
[311568400,1705252243347,-1679.28638672,0.00028,2]
[311568401,1705252243355,-1679.28638672,0.00028,2]
[311568404,1705252243365,-1679.28638672,0.00028,2]
[311568406,1705252243374,-1679.28638672,0.00028,2]
[311568408,1705252243384,-1679.28638672,0.00028,2]
[311568410,1705252243393,-1679.28638672,0.00028,2]
[311568412,1705252243403,-1679.28638672,0.00028,2]
[311568414,1705252243412,-1679.28638672,0.00028,2]
[311568416,1705252243421,-1679.28638672,0.00028,2]
[311568418,1705252243430,-1679.28638672,0.00028,2]
[311568420,1705252243439,-1679.28638672,0.00028,2]
[311568422,1705252243449,-1679.28638672,0.00028,2]
[311568424,1705252243458,-1679.28638672,0.00028,2]
[311568426,1705252243467,-1679.28638672,0.00028,2]
[311568428,1705252243477,-1679.28638672,0.00028,2]
[311568430,1705252243487,-1679.28638672,0.00028,2]
[311568432,1705252243496,-1679.28638672,0.00028,2]
[311568434,1705252243506,-1679.28638672,0.00028,2]
[311568436,1705252243516,-1679.28638672,0.00028,2]
[311568438,1705252243525,-1679.28638672,0.00028,2]
[311568440,1705252243534,-1679.28638672,0.00028,2]
[311568442,1705252243544,-1679.28638672,0.00028,2]
[311568444,1705252243553,-1679.28638672,0.00028,2]
[311568445,1705252243562,-1679.28638672,0.00028,2]
[311568448,1705252243572,-1679.28638672,0.00028,2]
[311568450,1705252243581,-1679.28638672,0.00028,2]
[311568452,1705252243590,-1679.28638672,0.00028,2]
[311568454,1705252243599,-1679.28638672,0.00028,2]
[311568456,1705252243609,-1679.28638672,0.00028,2]
[311568458,1705252243619,-1679.28638672,0.00028,2]
[311568460,1705252243629,-1679.28638672,0.00028,2]
[311568462,1705252243638,-1679.28638672,0.00028,2]
[311568464,1705252243648,-1679.28638672,0.00028,2]
[311568466,1705252243657,-1679.28638672,0.00028,2]
[311568468,1705252243666,-1679.28638672,0.00028,2]
[311568470,1705252243675,-1679.28638672,0.00028,2]
[311568472,1705252243685,-1679.28638672,0.00028,2]
[311568474,1705252243694,-1679.28638672,0.00028,2]
[311568476,1705252243704,-1679.28638672,0.00028,2]
[311568478,1705252243714,-1679.28638672,0.00028,2]
[311568480,1705252243724,-1679.28638672,0.00028,2]
[311568482,1705252243733,-1679.28638672,0.00028,2]
[311568484,1705252243743,-1679.28638672,0.00028,2]
[311568486,1705252243752,-1679.28638672,0.00028,2]
[311568488,1705252243761,-1679.28638672,0.00028,2]
[311568490,1705252243770,-1679.28638672,0.00028,2]
[311568492,1705252243780,-1679.28638672,0.00028,2]
[311568494,1705252243789,-1679.28638672,0.00028,2]
[311568495,1705252243798,-1679.28638672,0.00028,2]
[311568496,1705252243806,-1679.28638672,0.00028,2]
[311568497,1705252243815,-1679.28638672,0.00028,2]
[311568498,1705252243825,-1679.28638672,0.00028,2]
[311568499,1705252243834,-1679.28638672,0.00028,2]
[311568500,1705252243843,-1679.28638672,0.00028,2]
[311568501,1705252243852,-1679.28638672,0.00028,2]
[311568503,1705252243861,-1679.28638672,0.00028,2]
[311568505,1705252243871,-1679.28638672,0.00028,2]
[311568507,1705252243880,-1679.28638672,0.00028,2]
[311568509,1705252243889,-1679.28638672,0.00028,2]
[311568511,1705252243898,-1679.28638672,0.00028,2]
[311568513,1705252243908,-1679.28638672,0.00028,2]
[311568515,1705252243917,-1679.28638672,0.00028,2]
[311568517,1705252243926,-1679.28638672,0.00028,2]
[311568519,1705252243935,-1679.28638672,0.00028,2]
[311568521,1705252243945,-1679.28638672,0.00028,2]
[311568523,1705252243954,-1679.28638672,0.00028,2]
[311568525,1705252243963,-1679.28638672,0.00028,2]
[311568527,1705252243972,-322.6212628,0.00028027,2]
[311568529,1705252243982,-30609.0,0.0002803,2]
[311568531,1705252243991,-1462.363,0.00028059,2]
[311568533,1705252244000,-1029.0,0.00028059,2]
[311568535,1705252244010,-1904.69435412,0.00028139,2]
[311568537,1705252244020,-30609.0,0.00028189,2]
[311568539,1705252244030,-795.04,0.00028275,2]
[311568541,1705252244040,-300.0,0.00028299,2]
[311568543,1705252244049,-1000.0,0.000283,2]
[311568545,1705252244058,-1000.0,0.000283,2]
[311568547,1705252244067,-30609.0,0.00028347,2]
[311568549,1705252244077,-30609.0,0.00028505,2]
[311568551,1705252244086,-205.0,0.00028559,2]
[311568553,1705252244095,-499.78,0.00028563,2]
[311568555,1705252244104,-160.66968604,0.00028663,15]
[311568557,1705252244113,-30609.0,0.00028664,2]
[311568559,1705252244123,-155.0,0.00028767,2]
[311568561,1705252244132,-4000.0,0.000288,2]
[311568563,1705252244142,-30609.0,0.00028822,2]
[311568565,1705252244151,-1904.69435412,0.00028887,2]
[311568567,1705252244161,-1134.23173144,0.00028911,2]
[311568569,1705252244170,-1036.11932664,0.00028912,2]
[311568571,1705252244179,-1180.55421966,0.00028912,2]
[311568573,1705252244188,-3000.0,0.00029,2]
[311568575,1705252244197,-3000.0,0.0002901,2]
[311568578,1705252244207,-406.0,0.00029011,5]
[311568580,1705252244216,-4570.641166,0.0002902,2]
[311568582,1705252244226,-166.22,0.00029102,2]
[311568584,1705252244236,-210.0,0.0002925,2]
[311568586,1705252244245,-294.0,0.0002925,2]
[311568588,1705252244254,-795.04,0.00029254,2]
[311568590,1705252244263,-500.0,0.00029266,2]
[311568592,1705252244272,-1000.0,0.000293,2]
[311568594,1705252244282,-1000.0,0.000293,2]
[311568596,1705252244291,-680.0,0.0002944,2]
[311568598,1705252244300,-400.0,0.00029497,2]
[311568600,1705252244310,-227.39625135,0.00029498,2]
[311568602,1705252244320,-5682.39816162,0.00029499,2]
[311568604,1705252244329,-1041.09617247,0.000295,2]
[311568606,1705252244338,-155.0,0.000295,2]
[311568608,1705252244348,-363.35757551,0.000295,2]
[311568610,1705252244357,-517.11982633,0.000295,2]
[311568612,1705252244366,-327.51793651,0.000295,2]
[311568614,1705252244376,-9169.46865378,0.00029501,2]
[311568616,1705252244385,-200.0,0.00029502,2]
[311568618,1705252244394,-508.43471138,0.00029502,2]
[311568620,1705252244403,-166.22,0.00029517,2]
[311568622,1705252244412,-280.14979655,0.00029599,2]
[311568624,1705252244421,-1237.48891,0.00029632,2]
[311568626,1705252244430,-1904.69435412,0.00029635,2]
[311568628,1705252244440,-3303.60418818,0.000297,2]
[311568630,1705252244449,-4900.62126846,0.000297,2]
[311568632,1705252244458,-1168.5420571,0.000297,2]
[311568634,1705252244467,-625.20112938,0.00029756,2]
[311568636,1705252244477,-175.36700291,0.000298,2]
[311568638,1705252244488,-265.185965,0.00029896,2]
[311568640,1705252244498,-4698.35903998,0.00029897,2]
[311568642,1705252244507,-155.0,0.00029898,2]
[311568644,1705252244516,-1912.50052547,0.00029898,2]
[311568646,1705252244525,-234.05984529,0.00029898,2]
[311568648,1705252244534,-415.5894399,0.00029898,2]
[311568650,1705252244544,-166.22,0.00029933,2]
[311568652,1705252244557,-378.4,0.0002994,2]
[311568654,1705252244567,-515304.23303928,0.0002998,2]
[311568656,1705252244576,-151.0,0.0002998,7]
[311568658,1705252244585,-151.0,0.0002998,7]
[311568660,1705252244595,-500.0,0.00029999,2]
[311568662,1705252244604,-500.0,0.00029999,2]
[311568664,1705252244614,-192.87267139,0.00029999,2]
[311568666,1705252244623,-500.0,0.00029999,2]
[311568668,1705252244633,-403.18318612,0.00029999,2]
[311568670,1705252244642,-500.0,0.00029999,2]
[311568672,1705252244652,-500.0,0.00029999,2]
[311568674,1705252244661,-500.0,0.00029999,2]
[311568676,1705252244670,-500.0,0.00029999,2]
[311568678,1705252244679,-500.0,0.00029999,2]
[311568680,1705252244689,-500.0,0.00029999,2]
[311568683,1705252244698,-500.0,0.00029999,2]
[311568685,1705252244707,-500.0,0.00029999,2]
[311568687,1705252244717,-500.0,0.00029999,2]
[311568689,1705252244729,-500.0,0.00029999,2]
[311568691,1705252244738,-500.0,0.00029999,2]
[311568693,1705252244748,-368.6534747,0.00029999,2]
[311568695,1705252244758,-500.0,0.00029999,2]
[311568697,1705252244767,-1000.0,0.0003,2]
[311568699,1705252244777,-4740.52715646,0.0003,4]
[311568700,1705252244786,-357.48963238,0.0003,2]
[311568703,1705252244795,-3415.78678427,0.0003,3]
[311568705,1705252244807,-582.05205839,0.0003,2]
[311568707,1705252244817,-444.61405432,0.0003,4]
[311568709,1705252244826,-9629.9439869,0.0003,2]
[311568711,1705252244835,-904.74096856,0.0003,4]
[311568713,1705252244844,-678.07747155,0.0003,4]
[311568715,1705252244853,-2550.6211898,0.0003,4]
[311568717,1705252244862,-2500.0,0.0003,2]
[311568728,1705252244955,-1572.87627363,0.0003,2]
[311568730,1705252244965,-689.29232079,0.0003,2]
[311568732,1705252244975,-10484.58514221,0.0003,2]
[311568734,1705252244985,-3000.0,0.0003,2]
[311568736,1705252244994,-3000.0,0.0003,2]
[311568738,1705252245003,-3000.0,0.0003,2]
[311568740,1705252245012,-1000.0,0.0003,2]
[311568742,1705252245021,-3000.0,0.0003007,2]
[311568744,1705252245032,-251.65794723,0.000301,4]
[311568746,1705252245042,-555.09445568,0.000301,2]
[311568748,1705252245051,-4000.0,0.000301,2]
[311568751,1705252245060,-2795.12,0.00030126,10]
[311568752,1705252245070,-151.0,0.00030133,7]
[311568754,1705252245080,-151.0,0.00030133,7]
[311568756,1705252245090,-151.0,0.00030133,7]
[311568759,1705252245100,-186.125087,0.00030133,7]
[311568761,1705252245110,-62813.74101586,0.00030133,2]
[311568763,1705252245119,-443.931316,0.00030133,7]
[311568765,1705252245128,-300.0,0.00030135,2]
[311568766,1705252245137,-300.0,0.00030135,2]
[311568769,1705252245146,-284.346866,0.00030136,7]
[311568771,1705252245155,-151.0,0.00030136,7]
[311568772,1705252245164,-151.0,0.00030136,7]
[311568775,1705252245174,-784.69,0.00030136,2]
[311568777,1705252245183,-500.0,0.00030136,2]
[311568779,1705252245192,-500.0,0.00030136,2]
[311568781,1705252245201,-500.0,0.00030136,2]
[311568782,1705252245211,-500.0,0.00030136,2]
[311568783,1705252245220,-500.0,0.00030136,2]
[311568784,1705252245230,-1131.44,0.00030136,2]
[311568785,1705252245239,-1240.44,0.00030136,2]
[311568786,1705252245248,-524.66,0.00030136,2]
[311568787,1705252245257,-500.0,0.00030136,2]
[311568788,1705252245268,-500.0,0.00030136,2]
[311568790,1705252245277,-500.0,0.00030136,2]
[311568792,1705252245286,-1232.05,0.00030136,2]
[311568794,1705252245296,-500.0,0.00030136,2]
[311568796,1705252245306,-767.48,0.00030136,2]
[311568798,1705252245316,-500.0,0.00030136,2]
[311568800,1705252245326,-1126.41,0.00030136,2]
[311568802,1705252245335,-500.0,0.00030136,2]
[311568804,1705252245344,-500.0,0.00030136,2]
[311568806,1705252245354,-927.58,0.00030136,2]
[311568808,1705252245363,-500.0,0.00030136,2]
[311568810,1705252245372,-500.0,0.00030136,2]
[311568812,1705252245381,-500.0,0.00030136,2]
[311568814,1705252245391,-1002.34,0.00030136,2]
[311568816,1705252245400,-511.29276543,0.00030136,2]
[311568818,1705252245409,-500.0,0.00030136,2]
[311568820,1705252245418,-500.0,0.00030136,2]
[311568822,1705252245428,-500.0,0.00030136,2]
[311568824,1705252245436,-500.0,0.00030136,2]
[311568826,1705252245445,-576.02,0.00030136,2]
[311568828,1705252245455,-1451.92,0.00030136,2]
[311568830,1705252245464,-848.75,0.00030136,2]
[311568832,1705252245473,-500.0,0.00030136,2]
[311568834,1705252245482,-164.11831238,0.00030136,2]
[311568836,1705252245491,-1177.6,0.00030136,2]
[311568838,1705252245500,-1755.06,0.00030136,2]
[311568840,1705252245509,-500.0,0.00030136,2]
[311568842,1705252245518,-1136.11,0.00030136,2]
[311568844,1705252245527,-1716.01,0.00030136,2]
[311568846,1705252245538,-500.0,0.00030136,2]
[311568848,1705252245547,-500.0,0.00030136,2]